[Event "Early-Titled-Tuesday-Blitz-November-28-2023"]
[Site "Chess.com"]
[Date "2023.11.28"]
[Round "8"]
[White "Herman-NY"]
[Black "Der_Balak_3Halak"]
[Result "0-1"]
[WhiteElo "2480"]
[BlackElo "2326"]
[TimeControl "180+1"]
[EndTime "9:37:12 PST"]
[Termination "Der_Balak_3Halak won by checkmate"]

1. e4 {[%clk 0:03:00.9]} 1... c5 {[%clk 0:02:40.8]} 2. Nf3 {[%clk 0:03:00.7]}
2... Nc6 {[%clk 0:02:39.6]} 3. Bb5 {[%clk 0:02:59.7]} 3... g6 {[%clk 0:02:38.7]}
4. O-O {[%clk 0:02:59.5]} 4... Bg7 {[%clk 0:02:37.8]} 5. Re1 {[%clk 0:02:58.9]}
5... Qc7 {[%clk 0:02:35.4]} 6. c3 {[%clk 0:02:58.1]} 6... d6 {[%clk 0:02:34.3]}
7. h3 {[%clk 0:02:55.1]} 7... Nf6 {[%clk 0:02:22]} 8. d4 {[%clk 0:02:52.2]} 8...
cxd4 {[%clk 0:02:21.7]} 9. cxd4 {[%clk 0:02:52.6]} 9... O-O {[%clk 0:02:21.8]}
10. Nc3 {[%clk 0:02:49.4]} 10... a6 {[%clk 0:02:20]} 11. Bf1 {[%clk 0:02:48.1]}
11... b5 {[%clk 0:02:12.8]} 12. Bg5 {[%clk 0:02:41.5]} 12... Bb7 {[%clk
0:01:25]} 13. Rc1 {[%clk 0:02:34.9]} 13... Rad8 {[%clk 0:01:18]} 14. d5 {[%clk
0:01:07.4]} 14... Nb8 {[%clk 0:01:04.6]} 15. Nxb5 {[%clk 0:01:06.9]} 15... Qb6
{[%clk 0:01:00.1]} 16. Nbd4 {[%clk 0:01:07.3]} 16... Rc8 {[%clk 0:00:51.4]} 17.
Rxc8 {[%clk 0:01:00.8]} 17... Rxc8 {[%clk 0:00:52.3]} 18. Qd2 {[%clk 0:00:56.1]}
18... Nbd7 {[%clk 0:00:44.6]} 19. Nb3 {[%clk 0:00:41.2]} 19... Nc5 {[%clk
0:00:36.4]} 20. Nxc5 {[%clk 0:00:37.2]} 20... Qxc5 {[%clk 0:00:32.8]} 21. Bd3
{[%clk 0:00:35.1]} 21... Qc7 {[%clk 0:00:21.1]} 22. Rc1 {[%clk 0:00:18.8]} 22...
Qxc1+ {[%clk 0:00:17.5]} 23. Qxc1 {[%clk 0:00:19.7]} 23... Rxc1+ {[%clk
0:00:17.7]} 24. Bxc1 {[%clk 0:00:20.6]} 24... e6 {[%clk 0:00:16.7]} 25. dxe6
{[%clk 0:00:18.2]} 25... fxe6 {[%clk 0:00:17.6]} 26. Nd2 {[%clk 0:00:16.9]}
26... Nd7 {[%clk 0:00:16.7]} 27. Kf1 {[%clk 0:00:14.5]} 27... Nc5 {[%clk
0:00:17.1]} 28. Bc2 {[%clk 0:00:14.4]} 28... Bd4 {[%clk 0:00:15.3]} 29. f3
{[%clk 0:00:13.9]} 29... d5 {[%clk 0:00:14.3]} 30. exd5 {[%clk 0:00:13.4]} 30...
Bxd5 {[%clk 0:00:15.2]} 31. b4 {[%clk 0:00:11.6]} 31... Nd7 {[%clk 0:00:13.1]}
32. a3 {[%clk 0:00:09.2]} 32... Nb6 {[%clk 0:00:13.2]} 33. Bd3 {[%clk
0:00:08.8]} 33... Na4 {[%clk 0:00:12.8]} 34. Bxa6 {[%clk 0:00:07.8]} 34... Nc3
{[%clk 0:00:09.7]} 35. Bc4 {[%clk 0:00:06.3]} 35... Kf7 {[%clk 0:00:03.6]} 36.
Bb2 {[%clk 0:00:03.4]} 36... Nb1 {[%clk 0:00:02.7]} 37. Bxd4 {[%clk 0:00:03.4]}
37... Nxd2+ {[%clk 0:00:03]} 38. Ke2 {[%clk 0:00:04.2]} 38... Nxc4 {[%clk
0:00:03.8]} 39. Bc5 {[%clk 0:00:04.6]} 39... Nxa3 {[%clk 0:00:04.3]} 40. Ke3
{[%clk 0:00:04.9]} 40... Nb5 {[%clk 0:00:05.2]} 41. Kf4 {[%clk 0:00:05.2]} 41...
Kf6 {[%clk 0:00:06]} 42. g4 {[%clk 0:00:05.4]} 42... e5+ {[%clk 0:00:06.9]} 43.
Kg3 {[%clk 0:00:05.8]} 43... g5 {[%clk 0:00:07.3]} 44. h4 {[%clk 0:00:06.3]}
44... gxh4+ {[%clk 0:00:06.4]} 45. Kxh4 {[%clk 0:00:06.5]} 45... Bxf3 {[%clk
0:00:06.6]} 46. Kh5 {[%clk 0:00:06.6]} 46... e4 {[%clk 0:00:06.5]} 47. Kh6
{[%clk 0:00:05.7]} 47... Bxg4 {[%clk 0:00:06.2]} 48. Kxh7 {[%clk 0:00:06.2]}
48... Ke5 {[%clk 0:00:06.7]} 49. Kg6 {[%clk 0:00:06.4]} 49... Nd4 {[%clk
0:00:06.5]} 50. Kf7 {[%clk 0:00:05.2]} 50... e3 {[%clk 0:00:06.6]} 51. Be7
{[%clk 0:00:03.7]} 51... Nf5 {[%clk 0:00:04.9]} 52. Bg5 {[%clk 0:00:04.1]} 52...
e2 {[%clk 0:00:04.7]} 53. Bd2 {[%clk 0:00:04.8]} 53... Kd4 {[%clk 0:00:04.7]}
54. Be1 {[%clk 0:00:05]} 54... Kd3 {[%clk 0:00:04.4]} 55. b5 {[%clk 0:00:05.3]}
55... Nd6+ {[%clk 0:00:04.5]} 56. Kf6 {[%clk 0:00:05.2]} 56... Nxb5 {[%clk
0:00:05.4]} 57. Kg5 {[%clk 0:00:06.1]} 57... Be6 {[%clk 0:00:05]} 58. Kf4 {[%clk
0:00:07]} 58... Bc4 {[%clk 0:00:05.8]} 59. Kf3 {[%clk 0:00:07]} 59... Nd4+
{[%clk 0:00:06]} 60. Kf4 {[%clk 0:00:05.9]} 60... Nc2 {[%clk 0:00:06.9]} 61. Bf2
{[%clk 0:00:06.2]} 61... Kd2 {[%clk 0:00:06.8]} 62. Ke4 {[%clk 0:00:05.9]} 62...
Kd1 {[%clk 0:00:07.6]} 63. Kf4 {[%clk 0:00:05.4]} 63... Bf7 {[%clk 0:00:08.1]}
64. Ke4 {[%clk 0:00:05.5]} 64... e1=Q+ {[%clk 0:00:08.1]} 65. Bxe1 {[%clk
0:00:05.6]} 65... Nxe1 {[%clk 0:00:09]} 66. Kf4 {[%clk 0:00:06.3]} 66... Ke2
{[%clk 0:00:09.3]} 67. Ke4 {[%clk 0:00:07.2]} 67... Nd3 {[%clk 0:00:09.9]} 68.
Kd4 {[%clk 0:00:07.3]} 68... Kd2 {[%clk 0:00:09.7]} 69. Ke4 {[%clk 0:00:08.2]}
69... Bg6+ {[%clk 0:00:09.9]} 70. Kd4 {[%clk 0:00:09.1]} 70... Bf5 {[%clk
0:00:09.5]} 71. Kd5 {[%clk 0:00:09.2]} 71... Ke3 {[%clk 0:00:10]} 72. Kc4 {[%clk
0:00:09.6]} 72... Be6+ {[%clk 0:00:09.9]} 73. Kc3 {[%clk 0:00:09.4]} 73... Bd5
{[%clk 0:00:08.6]} 74. Kc2 {[%clk 0:00:09]} 74... Kd4 {[%clk 0:00:09.2]} 75. Kb1
{[%clk 0:00:08.3]} 75... Kc3 {[%clk 0:00:08.8]} 76. Ka1 {[%clk 0:00:08.9]} 76...
Nb2 {[%clk 0:00:08.1]} 77. Kb1 {[%clk 0:00:09.8]} 77... Bc4 {[%clk 0:00:06.9]}
78. Ka1 {[%clk 0:00:10.7]} 78... Kb3 {[%clk 0:00:05.9]} 79. Kb1 {[%clk
0:00:11.3]} 79... Bd5 {[%clk 0:00:06.1]} 80. Ka1 {[%clk 0:00:12.2]} 80... Nc4
{[%clk 0:00:06.5]} 81. Kb1 {[%clk 0:00:12.6]} 81... Be6 {[%clk 0:00:06]} 82. Ka1
{[%clk 0:00:13]} 82... Nb6 {[%clk 0:00:04.8]} 83. Kb1 {[%clk 0:00:13.9]} 83...
Nd5 {[%clk 0:00:04.5]} 84. Ka1 {[%clk 0:00:14.8]} 84... Nb4 {[%clk 0:00:05.2]}
85. Kb1 {[%clk 0:00:15.7]} 85... Nc2 {[%clk 0:00:05.7]} 86. Kc1 {[%clk
0:00:15.4]} 86... Kc3 {[%clk 0:00:06.6]} 87. Kb1 {[%clk 0:00:16.1]} 87... Bc4
{[%clk 0:00:06.3]} 88. Kc1 {[%clk 0:00:16.3]} 88... Ba2 {[%clk 0:00:06.9]} 89.
Kd1 {[%clk 0:00:17]} 89... Nd4 {[%clk 0:00:06.2]} 90. Kc1 {[%clk 0:00:17.9]}
90... Ne2+ {[%clk 0:00:05.8]} 91. Kd1 {[%clk 0:00:18.6]} 91... Kd3 {[%clk
0:00:06.7]} 92. Ke1 {[%clk 0:00:18.9]} 92... Ke3 {[%clk 0:00:07.4]} 93. Kd1
{[%clk 0:00:19.8]} 93... Bb3+ {[%clk 0:00:07.7]} 94. Ke1 {[%clk 0:00:20.4]}
94... Nd4 {[%clk 0:00:07]} 95. Kf1 {[%clk 0:00:19.9]} 95... Bc4+ {[%clk
0:00:04]} 96. Ke1 {[%clk 0:00:20.8]} 96... Bb3 {[%clk 0:00:02.4]} 97. Kf1 {[%clk
0:00:20.9]} 97... Ne2 {[%clk 0:00:02.6]} 98. Ke1 {[%clk 0:00:21.8]} 98... Ba4
{[%clk 0:00:02.7]} 99. Kf1 {[%clk 0:00:21.8]} 99... Nf4 {[%clk 0:00:03.2]} 100.
Ke1 {[%clk 0:00:22.7]} 100... Ng2+ {[%clk 0:00:03.4]} 101. Kf1 {[%clk 0:00:23]}
101... Kf3 {[%clk 0:00:04.3]} 102. Kg1 {[%clk 0:00:23.4]} 102... Kg3 {[%clk
0:00:04.7]} 103. Kf1 {[%clk 0:00:23]} 103... Bb5+ {[%clk 0:00:05.6]} 104. Kg1
{[%clk 0:00:23.9]} 104... Nf4 {[%clk 0:00:05.1]} 105. Kh1 {[%clk 0:00:24.1]}
105... Bc4 {[%clk 0:00:05]} 106. Kg1 {[%clk 0:00:25]} 106... Nh3+ {[%clk
0:00:05.1]} 107. Kh1 {[%clk 0:00:25.6]} 107... Bd5# {[%clk 0:00:05.9]} 0-1

[Event "Early-Titled-Tuesday-Blitz-November-28-2023"]
[Site "Chess.com"]
[Date "2023.11.28"]
[Round "8"]
[White "ozen_metehan"]
[Black "Iskusnyh"]
[Result "1-0"]
[WhiteElo "2455"]
[BlackElo "2547"]
[TimeControl "180+1"]
[EndTime "9:37:26 PST"]
[Termination "ozen_metehan won on time"]

1. e4 {[%clk 0:03:00.9]} 1... e6 {[%clk 0:02:59.2]} 2. d4 {[%clk 0:02:59.7]}
2... d5 {[%clk 0:02:58.8]} 3. e5 {[%clk 0:03:00.2]} 3... c5 {[%clk 0:02:58.4]}
4. c3 {[%clk 0:03:00.5]} 4... Nc6 {[%clk 0:02:58.1]} 5. Nf3 {[%clk 0:03:01.1]}
5... Nge7 {[%clk 0:02:57.3]} 6. Bd3 {[%clk 0:02:55.6]} 6... cxd4 {[%clk
0:02:50.4]} 7. cxd4 {[%clk 0:02:54]} 7... Nf5 {[%clk 0:02:49.8]} 8. Bxf5 {[%clk
0:02:38.3]} 8... exf5 {[%clk 0:02:50.7]} 9. O-O {[%clk 0:02:38.6]} 9... Be7
{[%clk 0:02:47.5]} 10. Nc3 {[%clk 0:02:38.5]} 10... Be6 {[%clk 0:02:47.5]} 11.
Ne2 {[%clk 0:02:38.7]} 11... O-O {[%clk 0:02:37.7]} 12. Nf4 {[%clk 0:02:34.7]}
12... Qb6 {[%clk 0:02:35.4]} 13. Be3 {[%clk 0:02:30.4]} 13... Rfc8 {[%clk
0:02:26]} 14. b3 {[%clk 0:02:25.7]} 14... a5 {[%clk 0:02:25.3]} 15. Nd3 {[%clk
0:02:19.5]} 15... Qd8 {[%clk 0:02:04.9]} 16. Rc1 {[%clk 0:02:11.4]} 16... Nb4
{[%clk 0:02:03.7]} 17. Qd2 {[%clk 0:02:03.1]} 17... Nxd3 {[%clk 0:01:49.5]} 18.
Qxd3 {[%clk 0:02:01.7]} 18... a4 {[%clk 0:01:49.4]} 19. Qb5 {[%clk 0:01:53.5]}
19... Qd7 {[%clk 0:01:40.4]} 20. Rxc8+ {[%clk 0:01:41.7]} 20... Rxc8 {[%clk
0:01:37.2]} 21. bxa4 {[%clk 0:01:41.1]} 21... Qxb5 {[%clk 0:01:22.7]} 22. axb5
{[%clk 0:01:39.7]} 22... Ra8 {[%clk 0:01:23.1]} 23. Ra1 {[%clk 0:01:32.4]} 23...
Bd7 {[%clk 0:01:18.1]} 24. b6 {[%clk 0:01:23.1]} 24... Bd8 {[%clk 0:01:07.4]}
25. h4 {[%clk 0:01:18.1]} 25... h6 {[%clk 0:01:05.1]} 26. Ne1 {[%clk 0:01:06.2]}
26... Bb5 {[%clk 0:01:01.4]} 27. Rb1 {[%clk 0:01:01.5]} 27... Bc4 {[%clk
0:00:58.8]} 28. Nf3 {[%clk 0:00:54.3]} 28... Rxa2 {[%clk 0:00:56.3]} 29. Nd2
{[%clk 0:00:53.5]} 29... Ba6 {[%clk 0:00:49.4]} 30. Nb3 {[%clk 0:00:52]} 30...
Bxb6 {[%clk 0:00:44.9]} 31. Nc1 {[%clk 0:00:45.7]} 31... Ra4 {[%clk 0:00:37.7]}
32. Rxb6 {[%clk 0:00:44.5]} 32... f4 {[%clk 0:00:38.2]} 33. Bxf4 {[%clk
0:00:43.6]} 33... Rxd4 {[%clk 0:00:38.6]} 34. Be3 {[%clk 0:00:39.2]} 34... Rxh4
{[%clk 0:00:37]} 35. Nb3 {[%clk 0:00:35.8]} 35... Re4 {[%clk 0:00:33.7]} 36. Nc5
{[%clk 0:00:35.2]} 36... Rxe5 {[%clk 0:00:31.5]} 37. Nxa6 {[%clk 0:00:33.6]}
37... bxa6 {[%clk 0:00:31.6]} 38. Rxa6 {[%clk 0:00:34.5]} 38... h5 {[%clk
0:00:27]} 39. Rd6 {[%clk 0:00:33]} 39... f6 {[%clk 0:00:26.1]} 40. Kh2 {[%clk
0:00:33.4]} 40... Kf7 {[%clk 0:00:24.9]} 41. Kg3 {[%clk 0:00:33.7]} 41... g5
{[%clk 0:00:24.2]} 42. Kf3 {[%clk 0:00:33.1]} 42... Kg6 {[%clk 0:00:23.3]} 43.
Bd4 {[%clk 0:00:28.8]} 43... Rf5+ {[%clk 0:00:23.1]} 44. Ke3 {[%clk 0:00:28.4]}
44... h4 {[%clk 0:00:22.3]} 45. f3 {[%clk 0:00:27.6]} 45... Kf7 {[%clk
0:00:20.7]} 46. Rd7+ {[%clk 0:00:25.8]} 46... Kg6 {[%clk 0:00:21]} 47. Bc5
{[%clk 0:00:25.4]} 47... Re5+ {[%clk 0:00:20.2]} 48. Kd3 {[%clk 0:00:21.4]}
48... Kf5 {[%clk 0:00:18.1]} 49. Rf7 {[%clk 0:00:20.4]} 49... Kg6 {[%clk
0:00:17.7]} 50. Rf8 {[%clk 0:00:20.2]} 50... Rf5 {[%clk 0:00:17.7]} 51. Bd4
{[%clk 0:00:17.6]} 51... h3 {[%clk 0:00:17.6]} 52. gxh3 {[%clk 0:00:15]} 52...
Rxf3+ {[%clk 0:00:17.9]} 53. Ke2 {[%clk 0:00:15.4]} 53... Rxh3 {[%clk
0:00:17.8]} 54. Rxf6+ {[%clk 0:00:15.3]} 54... Kh5 {[%clk 0:00:18.3]} 55. Rf5
{[%clk 0:00:14.3]} 55... Ra3 {[%clk 0:00:16.6]} 56. Rxd5 {[%clk 0:00:14.1]}
56... Kg4 {[%clk 0:00:15.9]} 57. Be3 {[%clk 0:00:14.2]} 57... Ra2+ {[%clk
0:00:16.3]} 58. Kd3 {[%clk 0:00:13.6]} 58... Ra3+ {[%clk 0:00:16.7]} 59. Ke4
{[%clk 0:00:13.8]} 59... Ra4+ {[%clk 0:00:16.8]} 60. Ke5 {[%clk 0:00:13]} 60...
Rb4 {[%clk 0:00:16]} 61. Kf6 {[%clk 0:00:11.7]} 61... Kf3 {[%clk 0:00:15.5]} 62.
Bxg5 {[%clk 0:00:11.2]} 62... Ra4 {[%clk 0:00:15.9]} 63. Kf5 {[%clk 0:00:11.3]}
63... Ra3 {[%clk 0:00:15.2]} 64. Rc5 {[%clk 0:00:11.1]} 64... Rb3 {[%clk
0:00:15.2]} 65. Rc4 {[%clk 0:00:10.2]} 65... Rb5+ {[%clk 0:00:15.1]} 66. Kg6
{[%clk 0:00:09.5]} 66... Ra5 {[%clk 0:00:15.3]} 67. Kh5 {[%clk 0:00:09.7]} 67...
Rb5 {[%clk 0:00:15.5]} 68. Rf4+ {[%clk 0:00:09.6]} 68... Ke2 {[%clk 0:00:15.4]}
69. Kg4 {[%clk 0:00:09.4]} 69... Kd3 {[%clk 0:00:15.1]} 70. Rf3+ {[%clk
0:00:09]} 70... Kc4 {[%clk 0:00:14.9]} 71. Bf6 {[%clk 0:00:07.9]} 71... Rb1
{[%clk 0:00:13]} 72. Kf4 {[%clk 0:00:08.1]} 72... Re1 {[%clk 0:00:12.3]} 73.
Rc3+ {[%clk 0:00:07.8]} 73... Kd5 {[%clk 0:00:12]} 74. Rd3+ {[%clk 0:00:08]}
74... Ke6 {[%clk 0:00:11.2]} 75. Bh4 {[%clk 0:00:07.7]} 75... Re2 {[%clk
0:00:09.8]} 76. Ra3 {[%clk 0:00:06]} 76... Kd5 {[%clk 0:00:09.5]} 77. Ra5+
{[%clk 0:00:06.1]} 77... Kc6 {[%clk 0:00:09.4]} 78. Bf6 {[%clk 0:00:06]} 78...
Re1 {[%clk 0:00:08.7]} 79. Be5 {[%clk 0:00:05.8]} 79... Re2 {[%clk 0:00:07.6]}
80. Kf5 {[%clk 0:00:05.6]} 80... Re1 {[%clk 0:00:07.6]} 81. Ke6 {[%clk
0:00:05.8]} 81... Re2 {[%clk 0:00:07]} 82. Ra3 {[%clk 0:00:05.9]} 82... Kc5
{[%clk 0:00:06.5]} 83. Rc3+ {[%clk 0:00:05.9]} 83... Kb4 {[%clk 0:00:06.6]} 84.
Rc8 {[%clk 0:00:05.9]} 84... Kb3 {[%clk 0:00:06.4]} 85. Kd5 {[%clk 0:00:06.2]}
85... Rg2 {[%clk 0:00:05.2]} 86. Rb8+ {[%clk 0:00:05.4]} 86... Ka4 {[%clk
0:00:04]} 87. Kc4 {[%clk 0:00:04.6]} 87... Ka5 {[%clk 0:00:03]} 88. Bd4 {[%clk
0:00:03.8]} 88... Ka6 {[%clk 0:00:02.3]} 89. Rb4 {[%clk 0:00:03]} 89... Rg4
{[%clk 0:00:01]} 90. Kc5 {[%clk 0:00:03]} 1-0

[Event "Early-Titled-Tuesday-Blitz-November-28-2023"]
[Site "Chess.com"]
[Date "2023.11.28"]
[Round "8"]
[White "carokannlover213"]
[Black "Iball95"]
[Result "1/2-1/2"]
[WhiteElo "2685"]
[BlackElo "2833"]
[TimeControl "180+1"]
[EndTime "9:38:22 PST"]
[Termination "Game drawn - insufficient material"]

1. d4 {[%clk 0:02:54.2]} 1... d5 {[%clk 0:02:59.9]} 2. Nf3 {[%clk 0:02:54.8]}
2... Nf6 {[%clk 0:02:59.5]} 3. c4 {[%clk 0:02:54.5]} 3... e6 {[%clk 0:02:59.6]}
4. Nc3 {[%clk 0:02:54.6]} 4... c5 {[%clk 0:02:59.7]} 5. cxd5 {[%clk 0:02:52]}
5... cxd4 {[%clk 0:02:59.1]} 6. Qxd4 {[%clk 0:02:49.9]} 6... Nxd5 {[%clk
0:02:59.3]} 7. Nxd5 {[%clk 0:02:48.4]} 7... exd5 {[%clk 0:03:00.2]} 8. g3 {[%clk
0:02:45.5]} 8... Nc6 {[%clk 0:02:59.6]} 9. Qd1 {[%clk 0:02:46.1]} 9... Bc5
{[%clk 0:02:55.1]} 10. Bg2 {[%clk 0:02:40.6]} 10... O-O {[%clk 0:02:54.4]} 11.
O-O {[%clk 0:02:41.2]} 11... Re8 {[%clk 0:02:54.9]} 12. Ne1 {[%clk 0:02:03.8]}
12... Bg4 {[%clk 0:02:50.2]} 13. Bf3 {[%clk 0:02:03.6]} 13... Bh3 {[%clk
0:02:42.3]} 14. Bg2 {[%clk 0:02:02.9]} 14... Qd7 {[%clk 0:02:14.3]} 15. Bxh3
{[%clk 0:01:54.7]} 15... Qxh3 {[%clk 0:02:15.2]} 16. Qxd5 {[%clk 0:01:55.2]}
16... Nd4 {[%clk 0:02:06.6]} 17. Qg2 {[%clk 0:01:37.6]} 17... Nxe2+ {[%clk
0:01:44.4]} 18. Kh1 {[%clk 0:01:37.8]} 18... Qf5 {[%clk 0:01:40.9]} 19. Qf3
{[%clk 0:01:31]} 19... Qg6 {[%clk 0:01:28.9]} 20. Be3 {[%clk 0:01:29.3]} 20...
Nd4 {[%clk 0:01:22.3]} 21. Bxd4 {[%clk 0:01:27.1]} 21... Bxd4 {[%clk 0:01:23.2]}
22. Nd3 {[%clk 0:01:27.8]} 22... h6 {[%clk 0:01:17.5]} 23. Rfe1 {[%clk
0:01:27.2]} 23... Rad8 {[%clk 0:01:13.9]} 24. Rxe8+ {[%clk 0:01:25.6]} 24...
Rxe8 {[%clk 0:01:14.8]} 25. Kg2 {[%clk 0:01:25.5]} 25... b5 {[%clk 0:01:12.4]}
26. Rd1 {[%clk 0:01:23.6]} 26... Bb6 {[%clk 0:01:04.5]} 27. Rd2 {[%clk
0:01:17.2]} 27... Qg5 {[%clk 0:01:00.4]} 28. Nf4 {[%clk 0:01:17.1]} 28... Qe5
{[%clk 0:00:55.9]} 29. b3 {[%clk 0:01:16.2]} 29... g6 {[%clk 0:00:55]} 30. Rd5
{[%clk 0:01:16.6]} 30... Qb2 {[%clk 0:00:51.9]} 31. Rxb5 {[%clk 0:01:14.1]}
31... Qxa2 {[%clk 0:00:41.3]} 32. Nd5 {[%clk 0:01:14.6]} 32... Re6 {[%clk
0:00:35.1]} 33. Nxb6 {[%clk 0:00:51.7]} 33... axb6 {[%clk 0:00:36]} 34. Rd5
{[%clk 0:00:43.7]} 34... Qb2 {[%clk 0:00:36.3]} 35. Rd8+ {[%clk 0:00:40.9]}
35... Kg7 {[%clk 0:00:36.1]} 36. Rd7 {[%clk 0:00:40.3]} 36... Rf6 {[%clk
0:00:35.5]} 37. Qe3 {[%clk 0:00:40.9]} 37... Qc2 {[%clk 0:00:34.9]} 38. Rd8
{[%clk 0:00:36.5]} 38... Qc6+ {[%clk 0:00:33.6]} 39. Kg1 {[%clk 0:00:30.8]}
39... Qc2 {[%clk 0:00:32.9]} 40. b4 {[%clk 0:00:23.7]} 40... Qb1+ {[%clk
0:00:31.5]} 41. Kg2 {[%clk 0:00:22.9]} 41... Qb2 {[%clk 0:00:22.4]} 42. Qd4
{[%clk 0:00:20]} 42... Qxd4 {[%clk 0:00:18]} 43. Rxd4 {[%clk 0:00:20.9]} 43...
h5 {[%clk 0:00:17.1]} 44. h3 {[%clk 0:00:20.3]} 44... Rf5 {[%clk 0:00:17.3]} 45.
Rd6 {[%clk 0:00:19.4]} 45... b5 {[%clk 0:00:17.3]} 46. Rb6 {[%clk 0:00:17.4]}
46... Kf8 {[%clk 0:00:16.8]} 47. f4 {[%clk 0:00:17.6]} 47... Rd5 {[%clk
0:00:16.3]} 48. Kf3 {[%clk 0:00:17]} 48... Rd3+ {[%clk 0:00:16.1]} 49. Kf2
{[%clk 0:00:16.9]} 49... Rd5 {[%clk 0:00:16.7]} 50. Kf3 {[%clk 0:00:17.2]} 50...
Rd3+ {[%clk 0:00:15.9]} 51. Kf2 {[%clk 0:00:15.6]} 51... Rd5 {[%clk 0:00:14.8]}
52. Rb7 {[%clk 0:00:14.6]} 52... Kg7 {[%clk 0:00:13.8]} 53. Kf3 {[%clk
0:00:14.9]} 53... Rd3+ {[%clk 0:00:13.3]} 54. Kg2 {[%clk 0:00:15.5]} 54... Rd5
{[%clk 0:00:13.1]} 55. Kf3 {[%clk 0:00:16.1]} 55... Rd3+ {[%clk 0:00:11.9]} 56.
Kf2 {[%clk 0:00:16.4]} 56... Rd5 {[%clk 0:00:11.5]} 57. Ke3 {[%clk 0:00:17]}
57... Kf6 {[%clk 0:00:07.7]} 58. Ke4 {[%clk 0:00:17.1]} 58... Rd1 {[%clk
0:00:05.1]} 59. Rb6+ {[%clk 0:00:16.9]} 59... Ke7 {[%clk 0:00:04.7]} 60. Rxb5
{[%clk 0:00:17.8]} 60... Rg1 {[%clk 0:00:04.9]} 61. Kf3 {[%clk 0:00:17.8]} 61...
Rf1+ {[%clk 0:00:05.4]} 62. Kg2 {[%clk 0:00:18]} 62... Rb1 {[%clk 0:00:05.3]}
63. Rb7+ {[%clk 0:00:18.7]} 63... Ke6 {[%clk 0:00:05.3]} 64. b5 {[%clk 0:00:19]}
64... Rb2+ {[%clk 0:00:05.6]} 65. Kf3 {[%clk 0:00:18.7]} 65... Rb3+ {[%clk
0:00:06.5]} 66. Ke4 {[%clk 0:00:19]} 66... Rxg3 {[%clk 0:00:06.6]} 67. Rc7
{[%clk 0:00:18]} 67... Rxh3 {[%clk 0:00:06.5]} 68. Rc6+ {[%clk 0:00:16.8]} 68...
Kd7 {[%clk 0:00:05.8]} 69. Rf6 {[%clk 0:00:13.5]} 69... Ke7 {[%clk 0:00:05.8]}
70. Ra6 {[%clk 0:00:13.6]} 70... Rb3 {[%clk 0:00:06.1]} 71. Rb6 {[%clk
0:00:13.9]} 71... h4 {[%clk 0:00:06.3]} 72. Ke5 {[%clk 0:00:14.5]} 72... h3
{[%clk 0:00:03.9]} 73. Rb7+ {[%clk 0:00:14.8]} 73... Ke8 {[%clk 0:00:03.7]} 74.
Kf6 {[%clk 0:00:15.4]} 74... h2 {[%clk 0:00:03.2]} 75. Re7+ {[%clk 0:00:14.7]}
75... Kd8 {[%clk 0:00:02.6]} 76. Re1 {[%clk 0:00:15.4]} 76... Rxb5 {[%clk
0:00:02.5]} 77. Kxf7 {[%clk 0:00:15.2]} 77... Rf5+ {[%clk 0:00:03.4]} 78. Kxg6
{[%clk 0:00:15.6]} 78... Rxf4 {[%clk 0:00:03.9]} 79. Rh1 {[%clk 0:00:16.2]}
79... Rg4+ {[%clk 0:00:03.9]} 80. Kh5 {[%clk 0:00:16]} 80... Rg1 {[%clk
0:00:04.8]} 81. Rxh2 {[%clk 0:00:15.9]} 81... Rg8 {[%clk 0:00:05.1]} 82. Re2
{[%clk 0:00:16.1]} 82... Kd7 {[%clk 0:00:05.4]} 83. Kh4 {[%clk 0:00:17]} 83...
Kd6 {[%clk 0:00:05.9]} 84. Kh3 {[%clk 0:00:17.5]} 84... Rg7 {[%clk 0:00:06.3]}
85. Rg2 {[%clk 0:00:18.4]} 85... Re7 {[%clk 0:00:07]} 86. Rg6+ {[%clk
0:00:18.3]} 86... Kd5 {[%clk 0:00:07.4]} 87. Rg5+ {[%clk 0:00:18.7]} 87... Ke4
{[%clk 0:00:07.5]} 88. Rg4+ {[%clk 0:00:19.2]} 88... Kf3 {[%clk 0:00:07.5]} 89.
Rg3+ {[%clk 0:00:19.6]} 89... Kf2 {[%clk 0:00:08]} 90. Rg5 {[%clk 0:00:19.3]}
90... Re4 {[%clk 0:00:07.6]} 91. Rg4 {[%clk 0:00:18.5]} 91... Re3+ {[%clk
0:00:07.5]} 92. Kh4 {[%clk 0:00:18.8]} 92... Re8 {[%clk 0:00:08.3]} 93. Rg5
{[%clk 0:00:13.1]} 93... Kf3 {[%clk 0:00:08.5]} 94. Rf5+ {[%clk 0:00:13.5]}
94... Ke4 {[%clk 0:00:08.4]} 95. Rf7 {[%clk 0:00:13.7]} 95... Rg8 {[%clk
0:00:08.2]} 96. Kh5 {[%clk 0:00:13.7]} 96... Re8 {[%clk 0:00:07.7]} 97. Kg6
{[%clk 0:00:13.7]} 97... Re5 {[%clk 0:00:08.3]} 98. Rf1 {[%clk 0:00:12.9]} 98...
Ra5 {[%clk 0:00:07.6]} 99. Kf6 {[%clk 0:00:12.4]} 99... Ra6+ {[%clk 0:00:07.4]}
100. Kg5 {[%clk 0:00:12.1]} 100... Ra5+ {[%clk 0:00:08]} 101. Kg4 {[%clk
0:00:12.6]} 101... Ra6 {[%clk 0:00:07.8]} 102. Re1+ {[%clk 0:00:11.2]} 102...
Kd4 {[%clk 0:00:08]} 103. Kf4 {[%clk 0:00:12.1]} 103... Ra2 {[%clk 0:00:07.3]}
104. Re4+ {[%clk 0:00:11]} 104... Kd5 {[%clk 0:00:07.6]} 105. Re1 {[%clk
0:00:11.1]} 105... Rf2+ {[%clk 0:00:07.2]} 106. Ke3 {[%clk 0:00:11.3]} 106...
Rf8 {[%clk 0:00:07.8]} 107. Rd1+ {[%clk 0:00:11.5]} 107... Kc4 {[%clk
0:00:08.3]} 108. Rc1+ {[%clk 0:00:10.6]} 108... Kd5 {[%clk 0:00:08.5]} 109. Rd1+
{[%clk 0:00:11]} 109... Kc4 {[%clk 0:00:08.6]} 110. Ke4 {[%clk 0:00:11.4]}
110... Re8+ {[%clk 0:00:08.2]} 111. Kf4 {[%clk 0:00:11.9]} 111... Re7 {[%clk
0:00:08.5]} 112. Rc1+ {[%clk 0:00:10.9]} 112... Kd4 {[%clk 0:00:08.5]} 113. Rd1+
{[%clk 0:00:11.1]} 113... Kc3 {[%clk 0:00:08.5]} 114. Kf3 {[%clk 0:00:11.3]}
114... Kc2 {[%clk 0:00:08.5]} 115. Rd6 {[%clk 0:00:11.3]} 115... Rc7 {[%clk
0:00:08.7]} 116. Ke2 {[%clk 0:00:11.3]} 116... Re7+ {[%clk 0:00:08.6]} 117. Kf3
{[%clk 0:00:11.6]} 117... Rc7 {[%clk 0:00:09.5]} 118. Ke2 {[%clk 0:00:12]}
118... Re7+ {[%clk 0:00:09.7]} 119. Kf2 {[%clk 0:00:12.6]} 119... Rc7 {[%clk
0:00:10.6]} 120. Ke3 {[%clk 0:00:13.1]} 120... Re7+ {[%clk 0:00:10.4]} 121. Kd4
{[%clk 0:00:13.5]} 121... Rc7 {[%clk 0:00:11]} 122. Kd5 {[%clk 0:00:14.2]}
122... Rc3 {[%clk 0:00:11]} 123. Rc6 {[%clk 0:00:15.1]} 123... Rxc6 {[%clk
0:00:11.2]} 124. Kxc6 {[%clk 0:00:16]} 1/2-1/2